[Event "Titled Tuesday Blitz November 08 Late 2022"]
[White "Zeynalli, Rashad"]
[Black "Yang, Kevin"]
[WhiteFideId "13403320"]
[BlackFideId "30908485"]
[WhiteElo "2125"]
[BlackElo "2055"]
[Result "0-1"]
[Round "08"]
[TimeControl "180+1"]
[Date "2022.11.09"]
[WhiteClock "0:00:02"]
[BlackClock "0:00:06"]

1. d4 {[%clk 0:03:00]}  Nf6 {[%clk 0:02:59]} 2. Bf4 {[%clk 0:03:00]}  e6 {[%clk 0:02:57]} 3. e3 {[%clk 0:03:00]}  b6 {[%clk 0:02:56]} 4. Nf3 {[%clk 0:02:59]}  Bb7 {[%clk 0:02:56]} 5. Bd3 {[%clk 0:02:59]}  Be7 {[%clk 0:02:55]} 6. h3 {[%clk 0:02:59]}  O-O {[%clk 0:02:54]} 7. O-O {[%clk 0:03:00]}  c5 {[%clk 0:02:54]} 8. c3 {[%clk 0:03:01]}  d6 {[%clk 0:02:53]} 9. Qe2 {[%clk 0:03:00]}  Nbd7 {[%clk 0:02:52]} 10. e4 {[%clk 0:03:01]}  cxd4 {[%clk 0:02:51]} 11. cxd4 {[%clk 0:03:01]}  Re8 {[%clk 0:02:40]} 12. Nc3 {[%clk 0:03:00]}  a6 {[%clk 0:02:40]} 13. Rfd1 {[%clk 0:02:57]}  b5 {[%clk 0:02:35]} 14. e5 {[%clk 0:02:54]}  dxe5 {[%clk 0:02:30]} 15. dxe5 {[%clk 0:02:53]}  Nd5 {[%clk 0:02:30]} 16. Nxd5 {[%clk 0:02:53]}  Bxd5 {[%clk 0:02:30]} 17. Rac1 {[%clk 0:02:44]}  Rc8 {[%clk 0:02:19]} 18. Bb1 {[%clk 0:02:42]}  Qb6 {[%clk 0:02:07]} 19. h4 {[%clk 0:02:20]}  Qb7 {[%clk 0:01:42]} 20. Ne1 {[%clk 0:02:04]}  Rxc1 {[%clk 0:01:17]} 21. Rxc1 {[%clk 0:02:03]}  Rc8 {[%clk 0:01:17]} 22. Rd1 {[%clk 0:01:59]}  Rc4 {[%clk 0:00:58]} 23. g3 {[%clk 0:01:48]}  Nf8 {[%clk 0:00:48]} 24. h5 {[%clk 0:01:47]}  h6 {[%clk 0:00:41]} 25. Qg4 {[%clk 0:01:40]}  Kh8 {[%clk 0:00:25]} 26. b3 {[%clk 0:01:33]}  Rb4 {[%clk 0:00:19]} 27. Qe2 {[%clk 0:01:22]}  a5 {[%clk 0:00:14]} 28. Bd2 {[%clk 0:01:01]}  Rd4 {[%clk 0:00:08]} 29. Bxa5 {[%clk 0:00:49]}  Rxd1 {[%clk 0:00:08]} 30. Qxd1 {[%clk 0:00:50]}  Qa7 {[%clk 0:00:07]} 31. b4 {[%clk 0:00:45]}  Qb7 {[%clk 0:00:05]} 32. a4 {[%clk 0:00:27]}  bxa4 {[%clk 0:00:02]} 33. Qxa4 {[%clk 0:00:28]}  Bc4 {[%clk 0:00:02]} 34. Qe8 {[%clk 0:00:25]}  Kg8 {[%clk 0:00:02]} 35. Bc2 {[%clk 0:00:16]}  Bxb4 {[%clk 0:00:02]} 36. Bxb4 {[%clk 0:00:14]}  Qxb4 {[%clk 0:00:03]} 37. Nf3 {[%clk 0:00:13]}  Qc3 {[%clk 0:00:03]} 38. Be4 {[%clk 0:00:13]}  Bd5 {[%clk 0:00:01]} 39. Bxd5 {[%clk 0:00:12]}  exd5 {[%clk 0:00:02]} 40. Kg2 {[%clk 0:00:13]}  Qd3 {[%clk 0:00:02]} 41. Qd8 {[%clk 0:00:12]}  Qe4 {[%clk 0:00:03]} 42. Qd6 {[%clk 0:00:11]}  Ne6 {[%clk 0:00:03]} 43. Qb8+ {[%clk 0:00:11]}  Kh7 {[%clk 0:00:02]} 44. Qb7 {[%clk 0:00:11]}  Ng5 {[%clk 0:00:03]} 45. Qb3 {[%clk 0:00:10]}  Nxf3 {[%clk 0:00:03]} 46. Qxf3 {[%clk 0:00:10]}  Qxe5 {[%clk 0:00:03]} 47. Qxf7 {[%clk 0:00:10]}  Qe4+ {[%clk 0:00:03]} 48. Qf3 {[%clk 0:00:11]}  Qe5 {[%clk 0:00:02]} 49. Qd3+ {[%clk 0:00:10]}  Kg8 {[%clk 0:00:02]} 50. Qg6 {[%clk 0:00:10]}  Kf8 {[%clk 0:00:02]} 51. Kf3 {[%clk 0:00:10]}  Ke7 {[%clk 0:00:02]} 52. Kg4 {[%clk 0:00:09]}  Qd4+ {[%clk 0:00:02]} 53. f4 {[%clk 0:00:09]}  Qd1+ {[%clk 0:00:02]} 54. Kh3 {[%clk 0:00:09]}  Qh1+ {[%clk 0:00:02]} 55. Kg4 {[%clk 0:00:09]}  Qd1+ {[%clk 0:00:03]} 56. Kf5 {[%clk 0:00:09]}  Qd3+ {[%clk 0:00:03]} 57. Ke5 {[%clk 0:00:09]}  Qe3+ {[%clk 0:00:02]} 58. Kxd5 {[%clk 0:00:09]}  Qd2+ {[%clk 0:00:02]} 59. Ke5 {[%clk 0:00:09]}  Qe3+ {[%clk 0:00:02]} 60. Qe4 {[%clk 0:00:09]}  Qxg3 {[%clk 0:00:03]} 61. Qb7+ {[%clk 0:00:09]}  Kf8 {[%clk 0:00:03]} 62. Qc8+ {[%clk 0:00:09]}  Kf7 {[%clk 0:00:03]} 63. Qe6+ {[%clk 0:00:08]}  Kf8 {[%clk 0:00:03]} 64. Qc8+ {[%clk 0:00:08]}  Kf7 {[%clk 0:00:03]} 65. Qd7+ {[%clk 0:00:07]}  Kf8 {[%clk 0:00:03]} 66. Qd8+ {[%clk 0:00:06]}  Kf7 {[%clk 0:00:04]} 67. Qd5+ {[%clk 0:00:06]}  Kf8 {[%clk 0:00:04]} 68. Ke6 {[%clk 0:00:06]}  Qh3+ {[%clk 0:00:04]} 69. Kd6 {[%clk 0:00:06]}  Qc8 {[%clk 0:00:02]} 70. Qe5 {[%clk 0:00:05]}  Qd8+ {[%clk 0:00:02]} 71. Ke6 {[%clk 0:00:05]}  Kg8 {[%clk 0:00:03]} 72. Kf5 {[%clk 0:00:05]}  Qf8+ {[%clk 0:00:03]} 73. Kg4 {[%clk 0:00:04]}  Qc8+ {[%clk 0:00:04]} 74. f5 {[%clk 0:00:04]}  Qc1 {[%clk 0:00:04]} 75. Qe6+ {[%clk 0:00:04]}  Kh7 {[%clk 0:00:05]} 76. Qg6+ {[%clk 0:00:04]}  Kh8 {[%clk 0:00:05]} 77. Qe8+ {[%clk 0:00:04]}  Kh7 {[%clk 0:00:06]} 78. Qe4 {[%clk 0:00:04]}  Kh8 {[%clk 0:00:06]} 79. Qd3 {[%clk 0:00:04]}  Kh7 {[%clk 0:00:06]} 80. f6+ {[%clk 0:00:04]}  Kg8 {[%clk 0:00:07]} 81. Qd5+ {[%clk 0:00:04]}  Kh8 {[%clk 0:00:07]} 82. Qd8+ {[%clk 0:00:03]}  Kh7 {[%clk 0:00:07]} 83. Qd3+ {[%clk 0:00:03]}  Kh8 {[%clk 0:00:07]} 84. f7 {[%clk 0:00:04]}  Qg5+ {[%clk 0:00:06]} 85. Kf3 {[%clk 0:00:02]}  Qf6+ {[%clk 0:00:06]} 86. Kg4 {[%clk 0:00:02]}  Qxf7 {[%clk 0:00:06]} 87. Qd8+ {[%clk 0:00:02]}  Qg8 {[%clk 0:00:06]} 0-1


[Site "https://www.chess.com"]

[Event "Titled Tuesday Blitz November 08 Late 2022"]
[White "chess50years"]
[Black "Yanayt, Eugene"]
[BlackFideId "2020165"]
[WhiteElo "2125"]
[BlackElo "2046"]
[Result "1-0"]
[Round "08"]
[TimeControl "180+1"]
[Date "2022.11.09"]
[WhiteClock "0:00:42"]
[BlackClock "0:00:11"]

1. d4 {[%clk 0:03:00]}  Nf6 {[%clk 0:02:59]} 2. c4 {[%clk 0:03:00]}  g6 {[%clk 0:02:58]} 3. Nc3 {[%clk 0:03:00]}  Bg7 {[%clk 0:02:56]} 4. e4 {[%clk 0:03:00]}  d6 {[%clk 0:02:56]} 5. Nf3 {[%clk 0:03:00]}  O-O {[%clk 0:02:56]} 6. h3 {[%clk 0:03:00]}  e5 {[%clk 0:02:53]} 7. dxe5 {[%clk 0:03:00]}  dxe5 {[%clk 0:02:52]} 8. Qxd8 {[%clk 0:02:59]}  Rxd8 {[%clk 0:02:52]} 9. Bg5 {[%clk 0:02:58]}  Re8 {[%clk 0:02:50]} 10. Nd5 {[%clk 0:02:58]}  Nxd5 {[%clk 0:02:49]} 11. cxd5 {[%clk 0:02:58]}  c6 {[%clk 0:02:47]} 12. Bc4 {[%clk 0:02:58]}  cxd5 {[%clk 0:02:46]} 13. Bxd5 {[%clk 0:02:58]}  Nc6 {[%clk 0:02:45]} 14. Bxc6 {[%clk 0:02:57]}  bxc6 {[%clk 0:02:45]} 15. O-O {[%clk 0:02:58]}  h6 {[%clk 0:02:39]} 16. Be3 {[%clk 0:02:57]}  f5 {[%clk 0:02:38]} 17. Nd2 {[%clk 0:02:56]}  Ba6 {[%clk 0:02:35]} 18. Rfc1 {[%clk 0:02:55]}  Bd3 {[%clk 0:02:25]} 19. f3 {[%clk 0:02:48]}  fxe4 {[%clk 0:02:23]} 20. Nxe4 {[%clk 0:02:45]}  Rec8 {[%clk 0:02:11]} 21. Rc3 {[%clk 0:02:37]}  Ba6 {[%clk 0:02:10]} 22. Ra3 {[%clk 0:02:27]}  Bb7 {[%clk 0:02:04]} 23. Rxa7 {[%clk 0:02:25]}  Rxa7 {[%clk 0:02:02]} 24. Bxa7 {[%clk 0:02:26]}  Rd8 {[%clk 0:02:01]} 25. Bc5 {[%clk 0:02:17]}  Ba6 {[%clk 0:01:49]} 26. b4 {[%clk 0:02:10]}  h5 {[%clk 0:01:41]} 27. Kf2 {[%clk 0:02:03]}  Kf7 {[%clk 0:01:39]} 28. a4 {[%clk 0:01:52]}  Bh6 {[%clk 0:01:32]} 29. Nd6+ {[%clk 0:01:40]}  Ke6 {[%clk 0:01:30]} 30. b5 {[%clk 0:01:38]}  Bc8 {[%clk 0:01:09]} 31. Nxc8 {[%clk 0:01:34]}  Rxc8 {[%clk 0:01:08]} 32. b6 {[%clk 0:01:31]}  Kd5 {[%clk 0:01:03]} 33. Be3 {[%clk 0:01:24]}  Bxe3+ {[%clk 0:00:56]} 34. Kxe3 {[%clk 0:01:25]}  Rb8 {[%clk 0:00:52]} 35. a5 {[%clk 0:01:25]}  Kc5 {[%clk 0:00:50]} 36. Ke4 {[%clk 0:01:14]}  Kb5 {[%clk 0:00:46]} 37. Kxe5 {[%clk 0:01:12]}  Ka6 {[%clk 0:00:41]} 38. Kf6 {[%clk 0:01:09]}  c5 {[%clk 0:00:34]} 39. Kxg6 {[%clk 0:01:06]}  Rg8+ {[%clk 0:00:24]} 40. Kxh5 {[%clk 0:01:05]}  Rxg2 {[%clk 0:00:24]} 41. Rc1 {[%clk 0:01:00]}  Kxa5 {[%clk 0:00:20]} 42. b7 {[%clk 0:00:58]}  Rb2 {[%clk 0:00:19]} 43. Rxc5+ {[%clk 0:00:57]}  Ka6 {[%clk 0:00:19]} 44. f4 {[%clk 0:00:50]}  Kxb7 {[%clk 0:00:18]} 45. f5 {[%clk 0:00:49]}  Kb6 {[%clk 0:00:16]} 46. Rc1 {[%clk 0:00:48]}  Rg2 {[%clk 0:00:15]} 47. h4 {[%clk 0:00:45]}  Kb5 {[%clk 0:00:14]} 48. Kh6 {[%clk 0:00:45]}  Kb4 {[%clk 0:00:14]} 49. h5 {[%clk 0:00:45]}  Kb3 {[%clk 0:00:14]} 50. f6 {[%clk 0:00:44]}  Kb2 {[%clk 0:00:11]} 51. Rf1 {[%clk 0:00:42]} 1-0


[Site "https://www.chess.com"]

[Event "Titled Tuesday Blitz November 08 Late 2022"]
[White "Adel, Sara"]
[Black "Gasparyan, David"]
[WhiteFideId "10616764"]
[BlackFideId "13311980"]
[WhiteElo "1994"]
[BlackElo "2282"]
[Result "1-0"]
[Round "09"]
[TimeControl "180+1"]
[Date "2022.11.09"]
[WhiteClock "0:00:06"]
[BlackClock "0:00:13"]

1. e4 {[%clk 0:01:59]}  c5 {[%clk 0:02:48]} 2. Nc3 {[%clk 0:01:58]}  e6 {[%clk 0:02:47]} 3. f4 {[%clk 0:01:59]}  a6 {[%clk 0:02:44]} 4. a4 {[%clk 0:01:57]}  d5 {[%clk 0:02:37]} 5. Nf3 {[%clk 0:01:57]}  Nc6 {[%clk 0:02:32]} 6. e5 {[%clk 0:01:54]}  h5 {[%clk 0:02:30]} 7. Be2 {[%clk 0:01:51]}  Nh6 {[%clk 0:02:29]} 8. O-O {[%clk 0:01:50]}  Be7 {[%clk 0:02:29]} 9. h3 {[%clk 0:01:48]}  h4 {[%clk 0:02:27]} 10. d3 {[%clk 0:01:41]}  Nf5 {[%clk 0:02:25]} 11. Ng5 {[%clk 0:01:40]}  Ncd4 {[%clk 0:02:17]} 12. Bh5 {[%clk 0:01:38]}  g6 {[%clk 0:02:15]} 13. Bg4 {[%clk 0:01:36]}  Ng3 {[%clk 0:02:14]} 14. Re1 {[%clk 0:01:29]}  Rb8 {[%clk 0:02:11]} 15. a5 {[%clk 0:01:18]}  Qc7 {[%clk 0:02:06]} 16. Be3 {[%clk 0:01:17]}  Ndf5 {[%clk 0:02:05]} 17. Bf2 {[%clk 0:01:15]}  Bd7 {[%clk 0:02:00]} 18. Qf3 {[%clk 0:00:57]}  Bc6 {[%clk 0:01:39]} 19. Bxg3 {[%clk 0:00:47]}  Nxg3 {[%clk 0:01:31]} 20. Bxe6 {[%clk 0:00:39]}  f6 {[%clk 0:01:30]} 21. Nf7 {[%clk 0:00:37]}  O-O {[%clk 0:00:50]} 22. Qg4 {[%clk 0:00:18]}  Kg7 {[%clk 0:00:45]} 23. f5 {[%clk 0:00:18]}  g5 {[%clk 0:00:23]} 24. exf6+ {[%clk 0:00:14]}  Bxf6 {[%clk 0:00:24]} 25. Nxg5 {[%clk 0:00:14]}  Kh6 {[%clk 0:00:25]} 26. Nf7+ {[%clk 0:00:13]}  Qxf7 {[%clk 0:00:21]} 27. Bxf7 {[%clk 0:00:12]}  Bg5 {[%clk 0:00:21]} 28. Be6 {[%clk 0:00:11]}  Rbd8 {[%clk 0:00:18]} 29. Nxd5 {[%clk 0:00:12]}  Bxd5 {[%clk 0:00:17]} 30. Bxd5 {[%clk 0:00:13]}  Rxd5 {[%clk 0:00:17]} 31. Re6+ {[%clk 0:00:13]}  Kh7 {[%clk 0:00:16]} 32. Qxg5 {[%clk 0:00:13]}  Nxf5 {[%clk 0:00:16]} 33. Qg6+ {[%clk 0:00:11]}  Kh8 {[%clk 0:00:16]} 34. Qh5+ {[%clk 0:00:11]}  Kg8 {[%clk 0:00:16]} 35. Rg6+ {[%clk 0:00:10]}  Ng7 {[%clk 0:00:17]} 36. Qxd5+ {[%clk 0:00:09]}  Kh7 {[%clk 0:00:17]} 37. Rg5 {[%clk 0:00:09]}  Rf6 {[%clk 0:00:16]} 38. Rf1 {[%clk 0:00:10]}  Ne8 {[%clk 0:00:12]} 39. Qd7+ {[%clk 0:00:09]}  Kh6 {[%clk 0:00:12]} 40. Rxf6+ {[%clk 0:00:08]}  Kxg5 {[%clk 0:00:13]} 41. Qf5# {[%clk 0:00:06]} 1-0


[Site "https://www.chess.com"]

[Event "Titled Tuesday Blitz November 08 Late 2022"]
[White "Al-Tarboush, Ward"]
[Black "Ibadov, Dashgyn"]
[WhiteFideId "7601450"]
[BlackFideId "24107514"]
[WhiteElo "2273"]
[BlackElo "2208"]
[Result "1-0"]
[Round "09"]
[TimeControl "180+1"]
[Date "2022.11.09"]
[WhiteClock "0:00:15"]
[BlackClock "0:00:26"]

1. e4 {[%clk 0:02:48]}  e5 {[%clk 0:02:59]} 2. Nf3 {[%clk 0:02:47]}  Nc6 {[%clk 0:02:59]} 3. Bb5 {[%clk 0:02:48]}  a6 {[%clk 0:02:59]} 4. Ba4 {[%clk 0:02:48]}  Nf6 {[%clk 0:02:59]} 5. O-O {[%clk 0:02:48]}  Be7 {[%clk 0:02:59]} 6. Re1 {[%clk 0:02:47]}  b5 {[%clk 0:02:59]} 7. Bb3 {[%clk 0:02:46]}  d6 {[%clk 0:02:59]} 8. c3 {[%clk 0:02:42]}  O-O {[%clk 0:02:59]} 9. h3 {[%clk 0:02:39]}  Nb8 {[%clk 0:02:59]} 10. d4 {[%clk 0:02:38]}  Nbd7 {[%clk 0:03:00]} 11. Nbd2 {[%clk 0:02:36]}  Bb7 {[%clk 0:03:00]} 12. Bc2 {[%clk 0:02:37]}  Re8 {[%clk 0:03:00]} 13. Nf1 {[%clk 0:02:14]}  Bf8 {[%clk 0:03:00]} 14. Ng3 {[%clk 0:02:14]}  g6 {[%clk 0:03:01]} 15. a4 {[%clk 0:02:13]}  Bg7 {[%clk 0:03:00]} 16. Bd3 {[%clk 0:02:13]}  Qb8 {[%clk 0:02:53]} 17. Bg5 {[%clk 0:02:06]}  c6 {[%clk 0:02:52]} 18. Qd2 {[%clk 0:01:52]}  Qc7 {[%clk 0:02:51]} 19. h4 {[%clk 0:01:41]}  c5 {[%clk 0:02:46]} 20. axb5 {[%clk 0:01:31]}  c4 {[%clk 0:02:45]} 21. bxa6 {[%clk 0:01:27]}  Bxa6 {[%clk 0:02:37]} 22. Bc2 {[%clk 0:01:26]}  Bb7 {[%clk 0:02:37]} 23. Rxa8 {[%clk 0:01:24]}  Bxa8 {[%clk 0:02:38]} 24. h5 {[%clk 0:01:23]}  exd4 {[%clk 0:02:35]} 25. cxd4 {[%clk 0:01:20]}  Qb6 {[%clk 0:02:25]} 26. Ba4 {[%clk 0:00:56]}  Rb8 {[%clk 0:02:24]} 27. e5 {[%clk 0:00:51]}  Nd5 {[%clk 0:00:46]} 28. Bxd7 {[%clk 0:00:42]}  Qxb2 {[%clk 0:00:46]} 29. Qxb2 {[%clk 0:00:38]}  Rxb2 {[%clk 0:00:47]} 30. e6 {[%clk 0:00:38]}  f6 {[%clk 0:00:42]} 31. e7 {[%clk 0:00:28]}  Nxe7 {[%clk 0:00:39]} 32. Rxe7 {[%clk 0:00:29]}  fxg5 {[%clk 0:00:36]} 33. Be6+ {[%clk 0:00:29]}  Kf8 {[%clk 0:00:36]} 34. Rf7+ {[%clk 0:00:29]}  Ke8 {[%clk 0:00:36]} 35. Rxg7 {[%clk 0:00:29]}  Bxf3 {[%clk 0:00:36]} 36. gxf3 {[%clk 0:00:29]}  c3 {[%clk 0:00:35]} 37. Kg2 {[%clk 0:00:21]}  c2 {[%clk 0:00:32]} 38. Ne2 {[%clk 0:00:20]}  gxh5 {[%clk 0:00:27]} 39. Rxh7 {[%clk 0:00:20]}  h4 {[%clk 0:00:27]} 40. Bf5 {[%clk 0:00:19]}  d5 {[%clk 0:00:26]} 41. Rc7 {[%clk 0:00:18]}  h3+ {[%clk 0:00:25]} 42. Kxh3 {[%clk 0:00:17]}  c1=Q {[%clk 0:00:25]} 43. Nxc1 {[%clk 0:00:16]}  Rxf2 {[%clk 0:00:26]} 44. Kg4 {[%clk 0:00:15]}  Rd2 {[%clk 0:00:26]} 45. Nd3 {[%clk 0:00:15]} 1-0


[Site "https://www.chess.com"]

[Event "Titled Tuesday Blitz November 08 Late 2022"]
[White "Ali Abdullahi, Farah"]
[Black "Hoffmann, Asa"]
[WhiteFideId "16100212"]
[BlackFideId "2001470"]
[WhiteElo "2270"]
[BlackElo "2117"]
[Result "1-0"]
[Round "09"]
[TimeControl "180+1"]
[Date "2022.11.09"]
[WhiteClock "0:00:03"]
[BlackClock "0:00:03"]

1. b3 {[%clk 0:02:59]}  d6 {[%clk 0:02:56]} 2. Bb2 {[%clk 0:02:59]}  e5 {[%clk 0:02:53]} 3. e3 {[%clk 0:02:59]}  Nf6 {[%clk 0:02:53]} 4. d4 {[%clk 0:02:59]}  Nbd7 {[%clk 0:02:52]} 5. c4 {[%clk 0:02:57]}  c6 {[%clk 0:02:51]} 6. dxe5 {[%clk 0:02:37]}  dxe5 {[%clk 0:02:51]} 7. Nf3 {[%clk 0:02:37]}  Bb4+ {[%clk 0:02:47]} 8. Nbd2 {[%clk 0:02:32]}  Qa5 {[%clk 0:02:44]} 9. Be2 {[%clk 0:02:20]}  e4 {[%clk 0:02:41]} 10. Nd4 {[%clk 0:02:14]}  O-O {[%clk 0:02:35]} 11. a3 {[%clk 0:02:02]}  Be7 {[%clk 0:02:32]} 12. Nf5 {[%clk 0:01:57]}  Qxf5 {[%clk 0:02:30]} 13. O-O {[%clk 0:01:57]}  Ne5 {[%clk 0:02:27]} 14. Qc2 {[%clk 0:01:46]}  Be6 {[%clk 0:02:19]} 15. Qc3 {[%clk 0:01:19]}  Ng6 {[%clk 0:02:17]} 16. f3 {[%clk 0:01:14]}  Qh5 {[%clk 0:01:54]} 17. Nxe4 {[%clk 0:01:11]}  Qh6 {[%clk 0:01:43]} 18. Ng3 {[%clk 0:00:57]}  Bc5 {[%clk 0:01:33]} 19. Bc1 {[%clk 0:00:54]}  a5 {[%clk 0:01:29]} 20. f4 {[%clk 0:00:51]}  Bg4 {[%clk 0:01:25]} 21. Bd3 {[%clk 0:00:36]}  Rae8 {[%clk 0:01:22]} 22. Bb1 {[%clk 0:00:32]}  Qh4 {[%clk 0:00:59]} 23. b4 {[%clk 0:00:25]}  axb4 {[%clk 0:00:55]} 24. axb4 {[%clk 0:00:25]}  Be7 {[%clk 0:00:54]} 25. e4 {[%clk 0:00:22]}  Nh5 {[%clk 0:00:44]} 26. f5 {[%clk 0:00:19]}  Bf6 {[%clk 0:00:34]} 27. Qa3 {[%clk 0:00:19]}  Ne5 {[%clk 0:00:28]} 28. Bb2 {[%clk 0:00:16]}  Nxg3 {[%clk 0:00:25]} 29. hxg3 {[%clk 0:00:15]}  Qg5 {[%clk 0:00:24]} 30. c5 {[%clk 0:00:14]}  Nc4 {[%clk 0:00:22]} 31. Bxf6 {[%clk 0:00:11]}  Qxf6 {[%clk 0:00:21]} 32. Qa2 {[%clk 0:00:10]}  Qd4+ {[%clk 0:00:20]} 33. Kh2 {[%clk 0:00:10]}  h5 {[%clk 0:00:16]} 34. Bc2 {[%clk 0:00:09]}  Rd8 {[%clk 0:00:13]} 35. Bb3 {[%clk 0:00:09]}  Ne5 {[%clk 0:00:12]} 36. Rac1 {[%clk 0:00:06]}  Qe3 {[%clk 0:00:07]} 37. Rc2 {[%clk 0:00:05]}  Qg5 {[%clk 0:00:06]} 38. Kg1 {[%clk 0:00:04]}  Bd1 {[%clk 0:00:03]} 39. Rcf2 {[%clk 0:00:03]} 1-0


[Site "https://www.chess.com"]

[Event "Titled Tuesday Blitz November 08 Late 2022"]
[White "Arbunic Castro, Giovanna"]
[Black "Simonovic, Miroslav"]
[WhiteFideId "3400549"]
[BlackFideId "919152"]
[WhiteElo "1886"]
[BlackElo "2043"]
[Result "0-1"]
[Round "09"]
[TimeControl "180+1"]
[Date "2022.11.09"]
[WhiteClock "0:00:05"]
[BlackClock "0:00:14"]

1. e4 {[%clk 0:03:00]}  c5 {[%clk 0:03:00]} 2. g3 {[%clk 0:02:59]}  Nc6 {[%clk 0:03:00]} 3. Bg2 {[%clk 0:02:59]}  g6 {[%clk 0:03:01]} 4. Ne2 {[%clk 0:02:59]}  Bg7 {[%clk 0:03:01]} 5. c3 {[%clk 0:02:59]}  e5 {[%clk 0:03:02]} 6. O-O {[%clk 0:02:57]}  Nge7 {[%clk 0:03:02]} 7. d3 {[%clk 0:02:57]}  O-O {[%clk 0:03:02]} 8. Be3 {[%clk 0:02:57]}  b6 {[%clk 0:02:56]} 9. d4 {[%clk 0:02:56]}  d6 {[%clk 0:02:39]} 10. f4 {[%clk 0:02:51]}  f6 {[%clk 0:02:30]} 11. d5 {[%clk 0:02:40]}  Nb8 {[%clk 0:02:29]} 12. Qd2 {[%clk 0:02:26]}  Ba6 {[%clk 0:02:25]} 13. b3 {[%clk 0:02:17]}  Nd7 {[%clk 0:02:23]} 14. c4 {[%clk 0:02:15]}  exf4 {[%clk 0:02:22]} 15. gxf4 {[%clk 0:02:13]}  f5 {[%clk 0:02:17]} 16. Nbc3 {[%clk 0:02:11]}  fxe4 {[%clk 0:02:16]} 17. Bxe4 {[%clk 0:02:08]}  Nf5 {[%clk 0:02:16]} 18. Bf2 {[%clk 0:02:02]}  Bc8 {[%clk 0:02:08]} 19. Rae1 {[%clk 0:01:52]}  Nf6 {[%clk 0:02:08]} 20. Bf3 {[%clk 0:01:39]}  Bd7 {[%clk 0:01:58]} 21. Ne4 {[%clk 0:01:21]}  Nxe4 {[%clk 0:01:54]} 22. Bxe4 {[%clk 0:01:20]}  Qf6 {[%clk 0:01:52]} 23. Bxf5 {[%clk 0:01:08]}  Bxf5 {[%clk 0:01:52]} 24. Ng3 {[%clk 0:01:07]}  Rae8 {[%clk 0:01:51]} 25. Rxe8 {[%clk 0:01:03]}  Rxe8 {[%clk 0:01:50]} 26. Re1 {[%clk 0:01:02]}  Rxe1+ {[%clk 0:01:42]} 27. Qxe1 {[%clk 0:01:01]}  Kf7 {[%clk 0:01:43]} 28. Ne4 {[%clk 0:00:59]}  Bxe4 {[%clk 0:01:37]} 29. Qxe4 {[%clk 0:00:57]}  Qe7 {[%clk 0:01:18]} 30. Qxe7+ {[%clk 0:00:43]}  Kxe7 {[%clk 0:01:19]} 31. Kg2 {[%clk 0:00:43]}  Kf6 {[%clk 0:01:19]} 32. Kf3 {[%clk 0:00:39]}  Kf5 {[%clk 0:01:18]} 33. Bh4 {[%clk 0:00:38]}  Bf8 {[%clk 0:01:07]} 34. Bd8 {[%clk 0:00:33]}  h6 {[%clk 0:01:08]} 35. a4 {[%clk 0:00:30]}  g5 {[%clk 0:01:06]} 36. fxg5 {[%clk 0:00:28]}  hxg5 {[%clk 0:01:07]} 37. Bc7 {[%clk 0:00:28]}  Be7 {[%clk 0:01:03]} 38. Bb8 {[%clk 0:00:25]}  g4+ {[%clk 0:00:54]} 39. Kg3 {[%clk 0:00:23]}  a6 {[%clk 0:00:24]} 40. Bc7 {[%clk 0:00:21]}  b5 {[%clk 0:00:19]} 41. cxb5 {[%clk 0:00:19]}  axb5 {[%clk 0:00:20]} 42. a5 {[%clk 0:00:19]}  c4 {[%clk 0:00:17]} 43. bxc4 {[%clk 0:00:18]}  bxc4 {[%clk 0:00:18]} 44. a6 {[%clk 0:00:17]}  c3 {[%clk 0:00:19]} 45. Ba5 {[%clk 0:00:13]}  c2 {[%clk 0:00:18]} 46. Bd2 {[%clk 0:00:13]}  Bg5 {[%clk 0:00:16]} 47. a7 {[%clk 0:00:11]}  Bxd2 {[%clk 0:00:15]} 48. a8=Q {[%clk 0:00:09]}  Bf4+ {[%clk 0:00:14]} 49. Kf2 {[%clk 0:00:07]}  c1=Q {[%clk 0:00:14]} 50. Qf8+ {[%clk 0:00:05]}  Ke4 {[%clk 0:00:14]} 0-1


[Site "https://www.chess.com"]

[Event "Titled Tuesday Blitz November 08 Late 2022"]
[White "Baskakov, Egor"]
[Black "Sarana, Alexey"]
[WhiteFideId "24197866"]
[BlackFideId "24133795"]
[WhiteElo "2211"]
[BlackElo "2708"]
[Result "1-0"]
[Round "09"]
[TimeControl "180+1"]
[Date "2022.11.08"]
[WhiteClock "0:00:07"]
[BlackClock "0:00:02"]

1. e4 {[%clk 0:03:00]}  c5 {[%clk 0:02:33]} 2. Nf3 {[%clk 0:03:00]}  d6 {[%clk 0:02:33]} 3. d4 {[%clk 0:03:00]}  cxd4 {[%clk 0:02:34]} 4. Nxd4 {[%clk 0:03:01]}  Nf6 {[%clk 0:02:35]} 5. Nc3 {[%clk 0:03:01]}  a6 {[%clk 0:02:36]} 6. a4 {[%clk 0:03:01]}  e5 {[%clk 0:02:35]} 7. Nde2 {[%clk 0:03:02]}  Be7 {[%clk 0:02:32]} 8. g3 {[%clk 0:03:02]}  h5 {[%clk 0:02:16]} 9. h3 {[%clk 0:03:02]}  Nc6 {[%clk 0:02:13]} 10. Bg2 {[%clk 0:03:02]}  Nb4 {[%clk 0:02:13]} 11. O-O {[%clk 0:03:01]}  Be6 {[%clk 0:02:13]} 12. f4 {[%clk 0:02:57]}  h4 {[%clk 0:02:11]} 13. g4 {[%clk 0:02:57]}  exf4 {[%clk 0:01:39]} 14. Nxf4 {[%clk 0:02:58]}  Nd7 {[%clk 0:01:39]} 15. a5 {[%clk 0:02:38]}  Ne5 {[%clk 0:01:37]} 16. Ra4 {[%clk 0:02:33]}  Nbc6 {[%clk 0:01:36]} 17. Ncd5 {[%clk 0:02:33]}  Bxd5 {[%clk 0:01:22]} 18. exd5 {[%clk 0:02:32]}  Nxa5 {[%clk 0:01:19]} 19. b3 {[%clk 0:02:28]}  b5 {[%clk 0:01:18]} 20. Re4 {[%clk 0:02:26]}  O-O {[%clk 0:01:17]} 21. Nd3 {[%clk 0:02:19]}  Nxd3 {[%clk 0:01:13]} 22. Qxd3 {[%clk 0:02:20]}  Bg5 {[%clk 0:01:11]} 23. Bb2 {[%clk 0:02:18]}  Nb7 {[%clk 0:01:07]} 24. b4 {[%clk 0:02:07]}  Rc8 {[%clk 0:01:05]} 25. Rf5 {[%clk 0:02:05]}  f6 {[%clk 0:01:03]} 26. Re6 {[%clk 0:01:41]}  Rf7 {[%clk 0:00:48]} 27. Be4 {[%clk 0:01:31]}  a5 {[%clk 0:00:46]} 28. Rxg5 {[%clk 0:01:16]}  fxg5 {[%clk 0:00:46]} 29. Bg6 {[%clk 0:01:17]}  Rcc7 {[%clk 0:00:11]} 30. Qxb5 {[%clk 0:00:58]}  Rf8 {[%clk 0:00:11]} 31. Qe2 {[%clk 0:00:22]}  axb4 {[%clk 0:00:08]} 32. Bf5 {[%clk 0:00:23]}  Nc5 {[%clk 0:00:08]} 33. Rg6 {[%clk 0:00:19]}  Qe8 {[%clk 0:00:07]} 34. Qd2 {[%clk 0:00:18]}  Ne4 {[%clk 0:00:05]} 35. Qd4 {[%clk 0:00:10]}  Nf6 {[%clk 0:00:04]} 36. Be6+ {[%clk 0:00:09]}  Rff7 {[%clk 0:00:04]} 37. Rxg5 {[%clk 0:00:09]}  Kf8 {[%clk 0:00:03]} 38. Rf5 {[%clk 0:00:08]}  Rxc2 {[%clk 0:00:03]} 39. g5 {[%clk 0:00:07]}  b3 {[%clk 0:00:01]} 40. gxf6 {[%clk 0:00:07]}  g6 {[%clk 0:00:02]} 41. Rf3 {[%clk 0:00:06]}  Qb5 {[%clk 0:00:02]} 42. Qxh4 {[%clk 0:00:06]}  Ke8 {[%clk 0:00:01]} 43. Qh8+ {[%clk 0:00:06]}  Rf8 {[%clk 0:00:02]} 44. f7+ {[%clk 0:00:06]}  Ke7 {[%clk 0:00:02]} 45. Qf6# {[%clk 0:00:07]} 1-0


[Site "https://www.chess.com"]